bitfinex-derivatives/quotes_SOLF0:USTF0_20250425
["timestamp","ask_amount","ask_price","bid_price","bid_amount"]
[1745578722621,36.74994497,153.09,153.06,6.5312]
[1745578722921,24.54,153.09,153.07,6.5307]
[1745578723224,30.21984497,153.09,153.06,6.5312]
[1745578723926,6.5306,153.08,153.05,6.5315]
[1745578724627,12.21044497,153.08,153.05,6.5315]
[1745578725023,5.67984497,153.07,153.04,6.532]
[1745578725222,5.67984497,153.06,153.02,9.56534497]
[1745578725427,12.21084497,153.07,153.05,6.5317]
[1745578725828,12.21084497,153.07,153.03,5.67984497]
[1745578726026,6.5313,153.06,153.03,6.5323]
[1745578727029,12.21084497,153.07,153.04,6.5321]
[1745578727728,6.5313,153.06,153.04,6.5321]
[1745578728028,5.67984497,153.07,153.04,6.5321]
[1745578728326,12.21094497,153.07,153.04,6.5321]
[1745578728728,6.5311,153.07,153.04,6.5321]
[1745578728930,12.21044497,153.08,153.05,6.5316]
[1745578729820,5.67984497,153.08,153.05,6.5316]
[1745578730120,6.5309,153.07,153.04,12.21174497]
[1745578730329,12.21074497,153.07,153.04,6.5319]
[1745578731230,6.5313,153.06,153.04,6.5319]
[1745578733929,6.5313,153.06,153.03,6.5323]
[1745578734128,5.67984497,153.07,153.02,5.67984497]
[1745578734327,5.67984497,153.03,152.99,6.534]
[1745578734629,5.67984497,153.02,152.98,9.53484497]
[1745578734831,5.67984497,153.01,152.97,5.67984497]
[1745578735033,5.67984497,153.01,152.98,6.5344]
[1745578735534,6.534,153.0,152.98,6.5344]
[1745578735832,12.21344497,153.01,152.98,6.5344]
[1745578736033,5.67984497,153.01,152.98,6.5344]
[1745578737033,5.67984497,153.01,152.99,6.5342]
[1745578737233,12.21314497,153.02,152.99,6.5342]
[1745578737634,5.67984497,153.02,153.0,6.5337]
[1745578737834,31.0927,153.03,152.94,5.8399]
[1745578737835,5.67984497,153.01,152.94,5.8399]
[1745578738034,5.67984497,153.0,152.96,5.67984497]
[1745578739138,5.67984497,153.0,152.98,6.5344]
[1745578739329,12.21344497,153.01,152.98,6.5344]
[1745578740238,12.21334497,153.01,152.98,6.5344]
[1745578740536,5.67984497,153.01,152.98,6.5344]
[1745578741333,6.5339,153.0,152.98,6.5344]
[1745578742332,12.21334497,153.01,152.97,5.67984497]
[1745578742540,24.56,153.03,152.99,5.67984497]
[1745578742841,24.56,153.03,153.0,5.67984497]
[1745578743237,24.56,153.03,153.01,6.5331]
[1745578744235,36.77254497,153.03,153.0,6.5335]
[1745578744436,5.67984497,153.02,152.98,5.67984497]
[1745578744741,12.21304497,153.02,152.99,6.5341]
[1745578745239,6.5335,153.01,152.98,12.21434497]
[1745578746541,6.5339,153.0,152.98,12.21434497]
[1745578746731,6.5339,153.0,152.98,6.5345]
[1745578747136,12.21344497,153.01,152.98,6.5345]
[1745578750245,12.21344497,153.01,152.99,6.5342]
[1745578750447,12.21344497,153.01,152.97,5.67984497]
[1745578750638,5.67984497,153.01,152.97,5.67984497]
[1745578750843,5.67984497,152.99,152.94,5.8399]
[1745578751142,5.67984497,152.99,152.95,5.67984497]
[1745578751347,12.21434497,152.99,152.94,5.8399]
[1745578751544,6.5345,152.99,152.96,5.67984497]
[1745578752142,6.5345,152.99,152.96,12.21514497]
[1745578752647,6.5345,152.99,152.97,6.5351]
[1745578754349,12.21384497,153.0,152.97,6.5351]
[1745578755345,2.0313,153.02,152.94,5.8399]
[1745578755346,5.67984497,152.98,152.94,5.8399]
[1745578755545,5.67984497,152.98,152.94,9.53484497]
[1745578755945,12.21484497,152.98,152.94,9.53484497]
[1745578756548,5.67984497,152.98,152.94,9.53484497]
[1745578757150,12.21454497,152.98,152.96,6.5355]
[1745578757349,5.67984497,152.99,152.95,5.67984497]
[1745578757745,12.21414497,152.99,152.96,6.5354]
[1745578757945,12.21414497,152.99,152.95,5.67984497]
[1745578758252,12.21414497,152.99,152.96,6.5354]
[1745578758456,12.21414497,152.99,152.95,5.67984497]
[1745578758747,12.21414497,152.99,152.96,6.5352]
[1745578760050,12.21414497,152.99,152.97,6.535]
[1745578762851,5.67984497,152.99,152.98,6.5347]
[1745578763754,12.21404497,152.99,152.97,6.535]
[1745578763957,5.67984497,152.99,152.97,6.535]
[1745578764348,5.67984497,153.0,152.96,5.67984497]
[1745578765155,12.21374497,153.0,152.98,6.5345]
[1745578765454,12.21374497,153.0,152.96,5.67984497]
[1745578765655,5.67984497,152.99,152.97,6.5348]
[1745578766054,5.67984497,152.98,152.95,6.5359]
[1745578766556,12.21484497,152.98,152.95,6.5359]
[1745578766759,5.67984497,152.97,152.94,6.5361]
[1745578767053,12.21524497,152.97,152.94,6.5361]
[1745578767254,5.67984497,152.95,152.92,6.537]
[1745578767559,5.67984497,152.94,152.9,3.9603]
[1745578767758,5.67984497,152.94,152.93,6.5368]
[1745578769761,5.67984497,152.95,152.94,6.5364]
[1745578770163,5.67984497,152.95,152.91,5.67984497]
[1745578770357,5.67984497,152.95,152.93,6.5364]
[1745578770662,5.67984497,152.95,152.91,5.67984497]
[1745578771062,5.67984497,152.95,152.94,6.5364]
[1745578771267,5.67984497,152.96,152.91,5.67984497]
[1745578771461,5.67984497,152.96,152.95,6.5359]
[1745578778668,5.67984497,152.96,152.94,6.5362]
[1745578779668,5.67984497,152.95,152.94,6.5362]
[1745578780262,5.67984497,152.95,152.93,6.5366]
[1745578780568,5.67984497,152.94,152.9,9.64014497]
[1745578780766,5.67984497,152.95,152.9,9.64014497]
[1745578781060,5.67984497,152.94,152.9,9.64014497]
[1745578782067,5.67984497,152.94,152.93,6.5365]
[1745578784672,5.67984497,152.95,152.94,6.5364]
[1745578784872,5.67984497,152.96,152.94,6.5364]
[1745578785066,5.67984497,152.95,152.94,6.5364]
[1745578785772,5.67984497,152.96,152.92,5.67984497]
[1745578786567,5.67984497,152.96,152.95,6.5359]
[1745578787771,5.67984497,152.97,152.96,6.5352]
[1745578787973,5.67984497,152.98,152.96,6.5352]
[1745578789873,12.21454497,152.98,152.96,6.5352]
[1745578790871,5.67984497,152.99,152.95,5.67984497]
[1745578791277,5.67984497,152.98,152.94,5.67984497]
[1745578791973,5.67984497,152.98,152.97,6.535]
[1745578792780,5.67984497,152.99,152.97,6.535]
[1745578794582,5.67984497,153.0,152.98,6.5347]
[1745578795179,30.21984497,153.01,152.97,5.67984497]
[1745578795782,30.21984497,153.01,152.99,6.5339]
[1745578796083,5.67984497,153.0,152.99,6.5339]
[1745578796278,30.21984497,153.01,152.99,6.5339]
[1745578796681,5.67984497,153.0,152.95,5.67984497]
[1745578796980,5.67984497,152.99,152.95,5.67984497]
[1745578797282,5.67984497,152.98,152.96,6.5354]
[1745578798380,12.21384497,153.0,152.97,6.5351]
[1745578799282,12.21414497,152.99,152.96,6.5353]
[1745578800378,2.0285,153.06,152.98,5.67984497]
[1745578800682,2.0285,153.06,153.01,5.67984497]
[1745578800875,5.67984497,153.05,153.01,5.67984497]
[1745578801784,5.67984497,153.05,153.0,5.67984497]
[1745578801984,6.5321,153.04,153.0,5.67984497]
[1745578802184,5.67984497,153.04,152.99,5.67984497]
[1745578802485,5.67984497,153.04,153.01,6.533]
[1745578802986,6.5335,153.01,152.98,6.5343]
[1745578803184,5.67984497,153.01,152.97,5.67984497]
[1745578803575,24.52,153.03,152.99,5.67984497]
[1745578803779,24.52,153.03,153.0,5.67984497]
[1745578803977,6.533,153.02,153.0,6.5336]
[1745578804179,30.19984497,153.03,153.0,6.5336]
[1745578804385,30.19984497,153.03,152.98,5.67984497]
[1745578804781,12.21284497,153.02,152.99,6.534]
[1745578805489,36.73244497,153.03,152.98,5.67984497]
[1745578805885,30.19984497,153.03,153.01,6.5333]
[1745578806688,24.52,153.03,153.01,6.5333]
[1745578806883,30.19984497,153.06,153.01,5.67984497]
[1745578807382,36.73144497,153.06,153.03,6.5324]
[1745578808994,24.52,153.06,153.02,5.67984497]
[1745578809193,24.52,153.06,153.03,5.67984497]
[1745578809697,24.52,153.06,153.04,6.5319]
[1745578810498,24.52,153.06,153.03,5.67984497]
[1745578811093,24.52,153.06,153.04,6.5319]
[1745578811298,24.52,153.06,153.04,5.67984497]
[1745578811494,24.5,153.09,153.05,5.67984497]
[1745578811691,24.5,153.09,153.06,5.67984497]
[1745578812095,5.67984497,153.12,153.08,5.67984497]
[1745578812495,12.20904497,153.11,153.08,6.5301]
[1745578812800,5.67984497,153.11,153.07,5.67984497]
[1745578812996,5.67984497,153.11,153.09,6.5299]
[1745578813697,30.17984497,153.13,153.1,6.5295]
[1745578813896,5.67984497,153.12,153.07,5.67984497]
[1745578814087,6.5296,153.1,153.07,12.21034497]
[1745578814293,5.67984497,153.11,153.07,5.67984497]
[1745578814699,5.67984497,153.1,153.02,24.5]
[1745578814892,5.67984497,153.08,153.02,24.5]
[1745578815098,5.67984497,153.09,153.04,5.67984497]
[1745578815398,5.67984497,153.1,153.06,5.67984497]
[1745578815897,12.20954497,153.1,153.07,6.5308]
[1745578816299,12.20954497,153.1,153.06,5.67984497]
[1745578816998,12.20914497,153.11,153.07,5.67984497]
[1745578817201,5.67984497,153.1,153.06,5.67984497]
[1745578817700,24.5,153.13,153.04,5.67984497]
[1745578817701,5.67984497,153.08,153.04,5.67984497]
[1745578817901,5.67984497,153.09,153.05,5.67984497]
[1745578818096,12.20994497,153.09,153.06,6.5309]
[1745578819391,5.67984497,153.09,153.07,6.5307]
[1745578819591,24.5,153.13,153.08,5.67984497]
[1745578819895,24.5,153.13,153.09,5.67984497]
[1745578820099,30.17984497,153.13,153.09,5.67984497]
[1745578820400,5.67984497,153.12,153.02,24.5]
[1745578820588,5.67984497,153.12,153.07,5.67984497]
[1745578821198,6.5291,153.11,153.09,6.5299]
[1745578821398,6.5291,153.11,153.07,5.67984497]
[1745578821593,5.67984497,153.12,153.07,5.67984497]
[1745578821801,36.70834497,153.13,153.1,6.5293]
[1745578822499,24.5,153.13,153.11,5.67984497]
[1745578822891,5.67984497,153.15,153.12,6.5285]
[1745578823094,6.5276,153.15,153.11,5.67984497]
[1745578823297,24.5,153.16,153.12,5.67984497]
[1745578823495,24.5,153.16,153.14,6.5276]
[1745578824500,31.0272,153.16,153.13,6.5279]
[1745578824906,30.17984497,153.16,153.13,6.5279]
[1745578825201,6.5276,153.15,153.12,6.5285]
[1745578825401,12.20744497,153.15,153.12,6.5285]
[1745578825602,12.20744497,153.15,153.11,5.67984497]
[1745578825797,5.67984497,153.15,153.07,5.8023]
[1745578826100,5.67984497,153.12,153.07,11.48214497]
[1745578826299,5.67984497,153.11,153.08,6.5301]
[1745578826504,5.67984497,153.11,153.06,30.17984497]
[1745578826703,5.67984497,153.11,153.06,5.67984497]
[1745578826904,6.5302,153.09,153.05,5.67984497]
[1745578827103,5.67984497,153.09,153.05,5.67984497]
[1745578827403,5.67984497,153.09,153.07,6.5307]
[1745578827800,12.20964497,153.1,153.07,6.5307]
[1745578827999,5.67984497,153.1,153.08,6.5304]
[1745578828402,5.67984497,153.1,153.06,5.67984497]
[1745578828597,12.20964497,153.1,153.07,6.5306]
[1745578828798,5.67984497,153.1,153.06,5.67984497]
[1745578829106,6.5293,153.11,153.08,6.5302]
[1745578829303,12.20914497,153.11,153.08,6.5302]
[1745578829502,5.67984497,153.11,153.08,6.5302]
[1745578830303,6.5296,153.1,153.08,6.5302]
[1745578830904,5.67984497,153.11,153.08,6.5302]
[1745578831110,12.20904497,153.11,153.06,9.56679497]
[1745578831510,12.20904497,153.11,153.08,6.5301]
[1745578832010,6.5297,153.1,153.07,12.21044497]
[1745578834512,6.5297,153.1,153.08,6.5303]
[1745578836113,12.20914497,153.11,153.08,6.53]
[1745578837013,12.20914497,153.11,153.09,6.53]
[1745578837708,12.20914497,153.11,153.08,6.5302]
[1745578837906,6.5296,153.1,153.08,6.5302]
[1745578838622,12.20944497,153.1,153.07,6.5306]
[1745578838812,5.67984497,153.09,153.07,6.5306]
[1745578839510,5.67984497,153.08,153.06,3.88695]
[1745578841116,5.67984497,153.08,153.07,6.5308]
[1745578842116,5.67984497,153.08,153.06,10.41815]
[1745578842317,5.67984497,153.08,153.06,3.88695]
[1745578842719,12.20994497,153.09,153.06,3.88695]
[1745578843218,12.20994497,153.09,153.07,6.5308]
[1745578844020,24.5,153.12,153.06,9.56679497]
[1745578844220,24.5,153.12,153.08,5.67984497]
[1745578844419,30.17984497,153.12,153.08,5.67984497]
[1745578844622,36.70874497,153.12,153.09,6.5296]
[1745578844918,30.17984497,153.12,153.09,6.5296]
[1745578845316,24.5,153.12,153.09,6.5296]
[1745578845519,30.17984497,153.12,153.08,6.5302]
[1745578845818,5.67984497,153.11,153.08,6.5302]
[1745578846021,5.67984497,153.11,153.09,6.5299]
[1745578846320,12.20934497,153.11,153.07,5.67984497]
[1745578846919,12.20934497,153.11,153.09,6.5298]
[1745578847320,36.70874497,153.12,153.09,6.5298]
[1745578848014,31.0289,153.12,153.09,6.5298]
[1745578848222,5.67984497,153.14,153.1,5.67984497]
[1745578848420,24.48,153.15,153.12,5.67984497]
[1745578848821,24.48,153.15,153.13,5.67984497]
[1745578850012,12.20664497,153.17,153.13,5.67984497]
[1745578850213,5.67984497,153.17,153.13,5.67984497]
[1745578850721,500.57984497,153.18,153.13,5.67984497]
[1745578851123,30.15984497,153.18,153.13,5.67984497]
[1745578851416,6.5266,153.17,153.14,6.5276]
[1745578851721,6.5266,153.17,153.14,5.67984497]
[1745578851922,6.5266,153.17,153.14,12.20744497]
[1745578852520,6.5266,153.17,153.15,6.5274]
[1745578852718,36.68624497,153.18,153.15,6.5274]
[1745578852918,30.15984497,153.18,153.15,6.5274]
[1745578853422,5.67984497,153.2,153.17,6.5266]
[1745578853622,30.15984497,153.2,153.17,6.5266]
[1745578853824,24.48,153.2,153.17,12.20644497]
[1745578854125,24.48,153.2,153.17,5.67984497]
[1745578854325,5.67984497,153.22,153.17,5.67984497]
[1745578854526,6.5253,153.2,153.17,5.67984497]
[1745578855027,6.5253,153.2,153.17,12.20624497]
[1745578857028,6.5258,153.19,153.17,5.67984497]
[1745578857228,5.67984497,153.2,153.16,5.67984497]
[1745578857427,5.67984497,153.2,153.15,5.67984497]
[1745578857627,6.5264,153.18,153.15,12.20694497]
[1745578857927,5.67984497,153.19,153.15,5.67984497]
[1745578858126,6.5259,153.19,153.16,12.20654497]
[1745578858327,6.5259,153.19,153.16,5.67984497]
[1745578858831,6.5259,153.19,153.17,6.5263]
[1745578859629,6.5259,153.19,153.16,12.20664497]
[1745578859934,12.20534497,153.2,153.16,5.67984497]
[1745578860129,5.67984497,153.21,153.17,12.20604497]
[1745578860530,6.5258,153.19,153.17,12.20604497]
[1745578860834,6.5258,153.19,153.16,12.20664497]
[1745578861134,6.5264,153.18,153.16,6.5268]
[1745578861335,5.67984497,153.19,153.16,6.5266]
[1745578861537,5.67984497,153.2,153.16,5.67984497]
[1745578861736,6.5259,153.19,153.16,5.67984497]
[1745578862338,6.5259,153.19,153.17,6.5265]
[1745578863740,6.5261,153.18,153.16,12.20674497]
[1745578863942,5.67984497,153.2,153.16,5.67984497]
[1745578864346,6.5254,153.2,153.17,12.20614497]
[1745578864540,6.5254,153.2,153.17,5.67984497]
[1745578865045,6.5258,153.19,153.17,5.67984497]
[1745578865945,6.5255,153.2,153.17,12.20624497]
[1745578866346,5.67984497,153.21,153.17,12.20624497]
[1745578866644,5.67984497,153.22,153.18,5.67984497]
[1745578867047,12.20454497,153.22,153.2,6.5252]
[1745578867345,6.5247,153.22,153.2,6.5252]
[1745578868346,31.0042,153.23,153.2,5.67984497]
[1745578868547,31.0042,153.23,153.21,5.67984497]
[1745578868844,6.5237,153.24,153.21,5.67984497]
[1745578869545,6.5237,153.24,153.22,6.5242]
[1745578870246,6.5241,153.23,153.21,6.5247]
[1745578870447,5.67984497,153.23,153.19,5.67984497]
[1745578870749,6.5247,153.22,153.2,6.5253]
[1745578871344,6.5247,153.22,153.19,12.20534497]
[1745578871750,6.5247,153.22,153.19,5.67984497]
[1745578871954,5.67984497,153.2,153.14,24.48]
[1745578872150,5.67984497,153.2,153.15,5.67984497]
[1745578872350,12.20534497,153.2,153.17,6.5263]
[1745578872655,5.67984497,153.2,153.17,6.5263]
[1745578872955,6.5259,153.19,153.16,6.5268]
[1745578873248,6.5259,153.19,153.16,12.20664497]
[1745578873450,6.5259,153.19,153.14,24.48]
[1745578873652,6.5259,153.19,153.16,5.67984497]
[1745578874251,5.67984497,153.2,153.16,5.67984497]
[1745578874553,30.13984497,153.22,153.17,5.67984497]
[1745578874749,30.13984497,153.22,153.18,5.67984497]
[1745578874951,1.8817,153.26,153.21,5.67984497]
[1745578875247,32.02154497,153.26,153.22,5.67984497]
[1745578875445,12.20334497,153.25,153.21,12.20434497]
[1745578875647,12.20334497,153.25,153.21,5.67984497]
[1745578875848,30.13984497,153.26,153.22,5.67984497]
[1745578876257,24.46,153.26,153.23,5.67984497]
[1745578876454,30.9828,153.26,153.23,5.67984497]
[1745578876657,30.9828,153.26,153.22,5.67984497]
[1745578876857,36.66264497,153.26,153.23,6.5238]
[1745578877056,36.66264497,153.26,153.22,5.67984497]
[1745578877256,30.9828,153.26,153.22,5.67984497]
[1745578877554,24.46,153.26,153.23,5.67984497]
[1745578877858,24.46,153.26,153.24,6.5233]
[1745578879256,30.9827,153.26,153.24,6.5233]
[1745578879955,36.66254497,153.26,153.24,6.5233]
[1745578880657,36.66254497,153.26,153.22,5.67984497]
[1745578881258,36.66254497,153.26,153.24,6.5234]
[1745578881954,24.46,153.26,153.24,6.5234]
[1745578882260,24.46,153.26,153.25,6.5231]
[1745578882659,24.46,153.26,153.24,6.5234]
[1745578883754,12.20244497,153.27,153.24,6.5234]
[1745578884060,6.5228,153.26,153.24,6.5234]
[1745578884358,24.46,153.29,153.21,5.67984497]
[1745578884359,5.67984497,153.25,153.21,5.67984497]
[1745578884559,5.67984497,153.22,153.18,30.13984497]
[1745578884762,5.67984497,153.22,153.18,5.67984497]
[1745578884959,12.20434497,153.22,153.2,6.5252]
[1745578886064,12.20434497,153.22,153.19,6.5255]
[1745578886765,12.20434497,153.22,153.2,6.5252]
[1745578887664,24.46,153.25,153.15,24.46]
[1745578887665,12.20474497,153.21,153.17,5.67984497]
[1745578888256,5.67984497,153.21,153.17,5.67984497]
[1745578889868,5.67984497,153.21,153.19,6.5254]
[1745578890766,12.20474497,153.21,153.19,6.5254]
[1745578891469,5.67984497,153.21,153.19,6.5254]
[1745578891968,12.20494497,153.21,153.18,6.526]
[1745578893465,12.20494497,153.21,153.19,6.5257]
[1745578894471,12.20444497,153.22,153.2,6.5253]
[1745578896172,5.67984497,153.21,153.2,6.5253]
[1745578896674,5.67984497,153.24,153.19,5.67984497]
[1745578896872,5.67984497,153.24,153.2,5.67984497]
[1745578897474,12.20364497,153.24,153.21,6.5248]
[1745578897876,5.67984497,153.24,153.21,6.5248]
[1745578898477,5.67984497,153.24,153.22,6.5244]
[1745578898774,36.66344497,153.25,153.22,6.5244]
[1745578899276,24.46,153.25,153.24,6.5236]
[1745578899473,36.66184497,153.28,153.24,5.67984497]
[1745578899773,24.46,153.28,153.25,5.67984497]
[1745578899974,24.46,153.28,153.26,6.5225]
[1745578900277,5.67984497,153.29,153.26,6.5225]
[1745578900474,30.13984497,153.3,153.28,6.5216]
[1745578900675,24.46,153.3,153.27,5.67984497]
[1745578900876,30.13984497,153.3,153.26,5.67984497]
[1745578901280,6.5217,153.29,153.27,6.5222]
[1745578901673,24.46,153.3,153.27,5.67984497]
[1745578901869,30.9813,153.3,153.27,12.20184497]
[1745578902074,5.67984497,153.32,153.28,5.67984497]
[1745578902378,5.67984497,153.32,153.27,5.67984497]
[1745578902579,12.20074497,153.31,153.28,6.5216]
[1745578902772,5.67984497,153.31,153.28,6.5216]
[1745578903377,6.5213,153.3,153.28,6.5216]
[1745578903878,6.5217,153.29,153.27,6.5221]
[1745578904077,5.67984497,153.29,153.25,5.67984497]
[1745578904273,5.67984497,153.29,153.24,30.13984497]
[1745578904474,5.67984497,153.29,153.25,5.67984497]
[1745578905277,6.5221,153.28,153.26,6.5225]
[1745578905674,6.5221,153.28,153.25,5.67984497]
[1745578905874,6.5221,153.28,153.25,6.5229]
[1745578906173,5.67984497,153.29,153.24,5.67984497]
[1745578906479,12.20154497,153.29,153.26,6.5224]
[1745578907278,12.20154497,153.29,153.27,6.5222]
[1745578907578,6.5217,153.29,153.27,6.5222]
[1745578907781,12.20094497,153.3,153.26,5.67984497]
[1745578908279,12.20094497,153.3,153.27,6.5221]
[1745578908782,6.5214,153.29,153.27,6.5221]
[1745578908982,6.5214,153.29,153.26,6.5226]
[1745578909185,5.67984497,153.3,153.25,5.67984497]
[1745578909375,6.5221,153.28,153.25,5.67984497]
[1745578909778,5.67984497,153.29,153.25,6.523]
[1745578909977,12.20184497,153.28,153.25,6.523]
[1745578910677,12.20184497,153.28,153.26,6.5227]
[1745578910883,12.20224497,153.27,153.23,5.67984497]
[1745578911083,12.20224497,153.27,153.24,6.5232]
[1745578911280,12.20224497,153.27,153.23,5.67984497]
[1745578911482,12.20264497,153.26,153.21,33.82404497]
[1745578911876,5.67984497,153.25,153.21,33.82404497]
[1745578912084,5.67984497,153.25,153.23,6.5237]
[1745578913076,12.20304497,153.25,153.23,6.5237]
[1745578913883,5.67984497,153.25,153.23,6.5237]
[1745578914390,5.67984497,153.25,153.24,6.5236]
[1745578915990,5.67984497,153.25,153.23,6.5238]
[1745578916181,5.67984497,153.25,153.2,5.67984497]
[1745578916380,5.67984497,153.22,153.19,5.67984497]
[1745578916684,5.67984497,153.22,153.2,6.525]
[1745578917388,5.67984497,153.22,153.18,30.11984497]
[1745578917587,5.67984497,153.19,153.08,13.0604]
[1745578917889,5.67984497,153.14,153.09,5.67984497]
[1745578918079,5.67984497,153.12,153.08,5.67984497]
[1745578918279,5.67984497,153.12,153.09,6.5299]
[1745578919187,5.67984497,153.12,153.08,5.67984497]
[1745578920189,5.67984497,153.12,153.09,6.5299]
[1745578920394,5.67984497,153.12,153.09,5.67984497]
[1745578920994,5.67984497,153.12,153.09,12.20974497]
[1745578921193,5.67984497,153.12,153.08,5.67984497]
[1745578921489,33.31072,153.14,153.07,5.8011]
[1745578921693,6.5288,153.12,153.07,5.8011]
[1745578922694,6.5284,153.13,153.09,6.5297]
[1745578923898,6.5284,153.13,153.1,6.5295]
[1745578924399,39.83862,153.14,153.1,6.5295]
[1745578925197,24.44,153.14,153.12,6.5283]
[1745578925499,24.44,153.14,153.07,14.67182]
[1745578925893,30.968,153.14,153.07,14.67182]
[1745578926098,33.31072,153.14,153.07,5.8011]
[1745578926597,6.529,153.12,153.09,6.5297]
[1745578926891,33.31072,153.14,153.09,6.5297]
[1745578927301,6.5287,153.12,153.09,6.5297]
[1745578928102,6.5284,153.13,153.1,6.5294]
[1745578928902,6.5288,153.12,153.09,6.5298]
[1745578933105,6.5292,153.11,153.08,6.5302]
[1745578933303,6.5292,153.11,153.07,3.8405]
[1745578933700,6.5292,153.11,153.08,6.5301]
[1745578934196,6.5296,153.1,153.08,6.5301]
[1745578934402,33.31072,153.14,153.06,3.88695]
[1745578934596,24.44,153.13,153.07,8.87072]
[1745578935105,24.44,153.13,153.11,6.5289]
[1745578935405,24.44,153.15,153.09,8.87072]
[1745578935606,24.44,153.15,153.12,6.5284]
[1745578935798,30.9675,153.15,153.12,6.5284]
[1745578935998,24.44,153.15,153.09,8.87072]
[1745578937105,24.44,153.15,153.1,3.9136]
[1745578937304,24.44,153.15,153.14,6.5278]
[1745578937605,30.9663,153.18,153.11,8.87072]
[1745578937804,30.9663,153.18,153.15,6.5272]
[1745578938308,6.5263,153.18,153.15,6.5272]
[1745578938505,30.9663,153.18,153.15,6.5272]
[1745578939808,6.5266,153.17,153.15,6.5272]
[1745578942606,30.9663,153.18,153.15,6.5272]
[1745578942807,24.44,153.18,153.15,6.5272]
[1745578943205,6.5266,153.17,153.15,6.5272]
[1745578943407,5.6729025,153.17,153.15,6.5272]
[1745578944313,12.1997025,153.17,153.15,6.5272]
[1745578944712,5.6729025,153.17,153.16,6.527]
[1745578945416,5.6729025,153.17,153.15,6.5272]
[1745578945714,12.1995025,153.17,153.15,6.5272]
[1745578948115,5.6729025,153.17,153.16,6.527]
[1745578948318,36.6392025,153.18,153.16,6.527]
[1745578949015,1.9555,153.24,153.17,5.6729025]
[1745578949220,30.1129025,153.23,153.19,5.6729025]
[1745578949517,6.5249,153.21,153.18,5.6729025]
[1745578950114,6.5249,153.21,153.18,12.1986025]
[1745578950412,6.5249,153.21,153.18,5.6729025]
[1745578950918,6.5249,153.21,153.19,6.5255]
[1745578952516,6.5249,153.21,153.18,12.1988025]
[1745578952817,6.5249,153.21,153.18,6.5259]
[1745578953517,12.1978025,153.21,153.18,6.5259]
[1745578953721,12.1983025,153.2,153.18,6.5259]
[1745578954321,5.6729025,153.2,153.19,6.5257]
[1745578955821,12.1979025,153.21,153.19,6.5257]
[1745578957824,12.1979025,153.21,153.18,6.5259]
[1745578958025,12.1983025,153.2,153.18,6.5259]
[1745578958426,5.6729025,153.21,153.17,5.6729025]
[1745578958622,12.1980025,153.21,153.19,6.5254]
[1745578960433,12.1975025,153.22,153.2,6.5253]
[1745578960833,5.6729025,153.22,153.18,5.6729025]
[1745578961533,12.1976025,153.22,153.19,6.5253]
[1745578961833,12.1976025,153.22,153.18,5.6729025]
[1745578962929,6.5251,153.21,153.14,24.44]
[1745578963130,12.1980025,153.21,153.17,5.6729025]
[1745578963330,5.6729025,153.2,153.16,5.6729025]
[1745578963931,6.5251,153.21,153.18,6.5257]
[1745578964234,12.1980025,153.21,153.18,6.5257]
[1745578965136,12.1980025,153.21,153.19,6.5256]
[1745578970535,12.1980025,153.21,153.18,6.5259]
[1745578971238,6.5248,153.22,153.18,5.6729025]
[1745578971639,6.5248,153.22,153.19,6.5254]
[1745578971839,12.1978025,153.21,153.19,6.5254]
[1745578973140,12.1978025,153.21,153.18,6.5259]
[1745578973741,12.1978025,153.21,153.19,6.5256]
[1745578976937,5.6729025,153.21,153.2,6.5253]
[1745578978038,12.1975025,153.22,153.2,6.5253]
[1745578979246,6.5249,153.21,153.19,6.5256]
[1745578979743,5.6729025,153.22,153.17,5.6729025]
[1745578980146,12.1975025,153.22,153.2,6.5251]
[1745578980341,5.6729025,153.22,153.18,5.6729025]
[1745578980745,12.1975025,153.22,153.19,6.5256]
[1745578981044,12.1975025,153.22,153.18,5.6729025]
[1745578981244,5.6729025,153.22,153.17,5.6729025]
[1745578981441,12.1980025,153.21,153.17,5.6729025]
[1745578982041,12.1980025,153.21,153.15,24.42]
[1745578982246,6.5253,153.2,153.18,6.5258]
[1745578982647,6.5256,153.2,153.18,6.5258]
[1745578982848,5.6729025,153.19,153.12,24.42]
[1745578983148,5.6729025,153.18,153.13,5.6729025]